Cogmind - Beta 16.1 *** ADVENTURER MODE // 2026.02.14 @ 21:01:03 Player: Wilihelm Result: Self-destructed Performance ------------- Evolutions (1) 500 Regions Visited (2) 400 Robots Destroyed (17) 85 Value Destroyed (236) 236 Prototype IDs (0) 0 Alien Tech Used (0) 0 Bonus (0) 0 TOTAL SCORE: 1221 Bonus ------- None Cogmind --------- Core Integrity 400/400 Matter 66/300 Energy 20/125 System Corruption 0% Temperature Cool (0) Movement Treading (160) Location -9/Materials Parts ------- > --- POWER (1) -------- Light Ion Engine > --- PROPULSION (2) --- Light Treads Light Treads > --- UTILITY (4) ------ Small Storage Unit Advanced Visual Processing Unit Advanced Visual Processing Unit ECM Suite > --- WEAPON (2) ------- Light Cannon Light Cannon > --- INVENTORY (8) ---- Ion Engine Heat Sink Medium Storage Unit Improved Light Armor Plating Improved Light Armor Plating Peak State ------------ > --- POWER ------------ Light Ion Engine > --- PROPULSION ------- Cesium-ion Thruster Cesium-ion Thruster > --- UTILITY ---------- Structural Scanner Advanced Visual Processing Unit Advanced Visual Processing Unit ECM Suite > --- WEAPON ----------- Light Cannon > --- INVENTORY -------- Ion Engine Heat Sink Small Storage Unit [Rating: 16] Favorites ----------- Power Ion Engine Engine Ion Engine Propulsion Light Treads Treads Light Treads Flight Unit Cesium-ion Thruster Utility Medium Storage Unit Device ECM Suite Storage Medium Storage Unit Processor Advanced Visual Processing Unit Weapon EM Pulse Gun Energy Gun EM Pulse Gun Ballistic Gun Light Assault Rifle Ballistic Cannon Light Cannon Build | -11 -10 -9 ------- Run | Yrd Mat Mat Slots Evolved 2 | . . 2 Power . | . . . Propulsion . | . . . Utility 2 | . . 2 Weapon . | . . . Parts Attached 21 | 6 8 7 Power 2 | 1 1 . Engine 2 | 1 1 . Core . | . . . Reactor . | . . . Propulsion 5 | 2 1 2 Treads 3 | 2 1 . Leg . | . . . Wheel . | . . . Hover . | . . . Flight 2 | . . 2 Utility 7 | 1 2 4 Device 2 | . . 2 Storage 3 | 1 2 . Processor 2 | . . 2 Hackware . | . . . Protection . | . . . Artifact . | . . . Weapon 7 | 2 4 1 Energy Gun 2 | 2 . . Energy Cannon . | . . . Ballistic Gun 2 | . 2 . Ballistic Cannon 3 | . 2 1 Launcher . | . . . Special Weapon . | . . . Impact Weapon . | . . . Slashing Weapon . | . . . Piercing Weapon . | . . . Special Melee Weapon . | . . . Unidentified Prototypes . | . . . Parts Lost . | . . . Power . | . . . Propulsion . | . . . Utility . | . . . Weapon . | . . . Highest Loss Streak . | . . . To Critical Strikes . | . . . Average Backups 5 | . 6 6 Power 1 | . 1 1 Propulsion . | . . . Utility 2 | . 2 4 Weapon 1 | . 1 . Tool/Special . | . . . Unused Backups 5 | . . 5 Power 1 | . . 1 Propulsion . | . . . Utility 4 | . . 4 Weapon . | . . . Tool/Special . | . . . Average Slot Usage (%) 86 | . 87 82 Engine 13 | . 14 11 Treads 25 | . 27 12 Device 1 | . . 14 Storage 15 | . 16 6 Processor 1 | . . 13 Energy Gun 16 | . 18 . Ballistic Cannon 9 | . 8 16 Peak Build Rating 16 | 6 8 16 Average Rating 6 | 4 6 12 On Entrance 4 | . 6 8 Avg Prop Armor Cover (%) . | . . . Naked Turns . | . . . Heaviest Build 25 | 12 25 25 Greatest Support 40 | 40 40 40 Greatest Overweight (x) 6 | . 6 4 Average Overweight (x) . | . . . Largest Inventory Capacity 10 | 8 10 10 Average Capacity 9 | 6 9 6 Most Carried 10 | 3 10 10 Average Carried 5 | . 6 5 Final Capacity 10 | 8 10 8 Final Carried 9 | 1 9 5 Class Distribution -------------------- 100% | Mutant Dominant Class ---------------- Mutant | -10/Materials Mutant | -9/Materials Resources | -11 -10 -9 ----------- Run | Yrd Mat Mat Matter Collected 420 | 260 160 . Remotely . | . . . Salvage Created 296 | . 296 . Parts 28 | . 28 . Haulers Intercepted . | . . . Recyclers Shooed . | . . . Parts Field Recycled . | . . . Retrieved Matter . | . . . Parts Self-Destructed . | . . . Prevented . | . . . Parts Restored . | . . . Kills | -11 -10 -9 ------- Run | Yrd Mat Mat Combat Hostiles Destroyed 14 | . 14 . Guns 7 | . 7 . Cannons 6 | . 6 . AOE 1 | . 1 . Classes Destroyed 3 | . 3 . Watcher 3 | . 3 . Swarmer 12 | . 12 . Grunt 2 | . 2 . Best Kill Streak 3 | . 3 . Combat Bots Only 3 | . 3 . Max Kills in Single Turn 2 | . 2 . Gunslinging 1 | . 1 . Exploded 1 | . 1 . Melee . | . . . Uniques/NPCs Destroyed . | . . . Combat | -11 -10 -9 -------- Run | Yrd Mat Mat Hostile Shots Fired 63 | . 63 . Missed 22 | . 22 . Hits 41 | . 41 . Projectile 41 | . 41 . Damage Taken 262 | . 262 . Core 37 | . 37 . Absorbed by Shields . | . . . Ignored by Resistances 85 | . 85 . Core Remaining (%) 92 | 100 85 . Volleys Fired 36 | . 33 3 Largest 2 | . 2 2 Hottest 80 | . 80 60 Shots Fired 72 | . 66 6 Gun 36 | . 36 . Cannon 36 | . 30 6 Launcher . | . . . Special . | . . . Kinetic 36 | . 30 6 Thermal . | . . . Explosive . | . . . Electromagnetic 36 | . 36 . Robot Hit Streak 7 | . 7 2 Robot Miss Streak 3 | . 3 2 Penetration Max . | . . . Secondary Targets 1 | . 1 . Max Gunslinging Chain 1 | . 1 . Shots Hit Robots 39 | . 36 3 Core Hits 19 | . 19 . Critical Kills . | . . . Critical Parts Destroyed . | . . . Critical Strikes 1 | . 1 . Corrupt 1 | . 1 . Melee Attacks . | . . . Impact . | . . . Slashing . | . . . Piercing . | . . . Sneak Attacks . | . . . Combat Hostiles . | . . . Follow-up Attacks . | . . . Damage Inflicted 636 | . 579 57 Guns 260 | . 260 . Cannons 340 | . 283 57 Explosions 36 | . 36 . Melee . | . . . Ramming . | . . . Kinetic 340 | . 283 57 Thermal 36 | . 36 . Explosive . | . . . Electromagnetic 260 | . 260 . Impact . | . . . Slashing . | . . . Piercing . | . . . Highest Corruption . | . . . Average Corruption . | . . . Corruption Purged . | . . . Corruption Blocked . | . . . Overload Shots . | . . . Overflow Damage . | . . . Projectiles . | . . . Explosions . | . . . Melee . | . . . Knockbacks 6 | . 4 2 Impact . | . . . Kinetic 5 | . 3 2 Secondary 1 | . 1 . Self-Inflicted Damage . | . . . Shots . | . . . Rammed . | . . . Targets Rammed . | . . . Kicked . | . . . Crushed . | . . . Highest Temperature 90 | . 90 . Average Temperature 37 | . 37 . Received Heat Transfer 18 | . 18 . Siege Activations . | . . . Martial Activations . | . . . Shielding Activations . | . . . Robots Disrupted . | . . . Combat Hostiles . | . . . Robots Corrupted . | . . . Combat Hostiles . | . . . Parts Fried 1 | . 1 . Impact Corruptions . | . . . Robots Melted . | . . . Combat Hostiles . | . . . Parts Melted . | . . . Heat Transferred . | . . . Parts Sabotaged . | . . . Parts Stolen . | . . . Parts Stripped . | . . . Power Chain Reactions 1 | . 1 . Alert | -11 -10 -9 ------- Run | Yrd Mat Mat Maximum Alert Level . | . . . Low Security (%) 100 | 100 100 100 Level 1 . | . . . Level 2 . | . . . Level 3 . | . . . Level 4 . | . . . Level 5 . | . . . High Security . | . . . Max Security . | . . . Peak Influence 111 | . 111 32 Initial 32 | . . 32 Average 39 | . 46 14 Influence Increases 378 | . 378 . Destroy 0b10 Robot/C 280 | . 280 . Destroy 0b10 Robot/NC 15 | . 15 . Destroy Leader 46 | . 46 . Successful Hack 15 | . 15 . Destroy Structure 7 | . 7 . Lose Combat Pursuer 15 | . 15 . Influence Decreases 378 | . 287 91 Entered New Map 59 | . . 59 Time Decay 319 | . 287 32 Squads Dispatched . | . . . Investigation . | . . . Extermination . | . . . Reinforcement . | . . . Assault . | . . . Garrison . | . . . Intercept . | . . . Searches Triggered . | . . . Construction Impeded . | . . . Haulers Reinforced . | . . . Active Scanning Responses . | . . . Cargo Convoy Interrupts . | . . . Stealth | -11 -10 -9 --------- Run | Yrd Mat Mat Distress Signals . | . . . Communications Jammed . | . . . Distress Signals . | . . . Times Spotted 20 | . 18 2 Peak Tracking Total 3 | . 3 2 Tactical Retreats 1 | . 1 . Traps | -11 -10 -9 ------- Run | Yrd Mat Mat Traps Triggered 1 | . 1 . Indirectly . | . . . Trap Hack Attempts . | . . . Triggered . | . . . Disarmed . | . . . Reprogrammed . | . . . Reused . | . . . Traps Extracted . | . . . Installed . | . . . Triggered . | . . . Machines | -11 -10 -9 ---------- Run | Yrd Mat Mat Machines Disabled . | . . . Max in Single Turn . | . . . Machines Repaired . | . . . Machines Dismantled . | . . . Machines Sabotaged . | . . . Overloaded Fab Kills . | . . . Hacking | -11 -10 -9 --------- Run | Yrd Mat Mat Machines Accessed 4 | . 4 . Terminals 3 | . 3 . Fabricators . | . . . Repair Stations . | . . . Recycling Units 1 | . 1 . Scanalyzers . | . . . Garrison Access . | . . . Total Hacks 13 | . 13 . Successful 6 | . 6 . Failed 7 | . 7 . Catastrophic . | . . . Database Lockouts . | . . . Manual 6 | . 6 . Terminals 10 | . 10 . Fabricators . | . . . Repair Stations . | . . . Recycling Units 3 | . 3 . Scanalyzers . | . . . Garrison Access . | . . . Terminal Hacks 5 | . 5 . Record 1 | . 1 . Level Access Points 1 | . 1 . Branch Access Points 1 | . 1 . Alert Level 2 | . 2 . Fabricator Hacks . | . . . Repair Station Hacks . | . . . Recycling Unit Hacks . | . . . Scanalyzer . | . . . Garrison Access Hacks . | . . . Unauthorized Hacks 1 | . 1 . Terminals . | . . . Fabricators . | . . . Repair Stations . | . . . Recycling Units 1 | . 1 . Monitor 1 | . 1 . Scanalyzers . | . . . Garrison Access . | . . . Data Cores Recovered . | . . . Used . | . . . Hacking Detections 4 | . 4 . Full Trace Events . | . . . Feedback Events . | . . . Feedback Blocked . | . . . Robot Schematics Acquired . | . . . Robots Built . | . . . Authchips . | . . . Time . | . . . Total Robot Build Rating . | . . . Part Schematics Acquired . | . . . Parts Built . | . . . Authchips . | . . . Time . | . . . Total Part Build Rating . | . . . Part Studies Acquired . | . . . Parts Repaired . | . . . Time . | . . . Parts Recycled . | . . . Recycled Matter . | . . . Retrieved Matter . | . . . Retrieved Components . | . . . Parts Scanalyzed . | . . . Part Schematics Acquired . | . . . Parts Damaged . | . . . Bothacking | -11 -10 -9 ------------ Run | Yrd Mat Mat Used RIF Installer . | . . . Robots Hacked . | . . . Non-combat . | . . . Combat . | . . . Robot Hacks Applied . | . . . Relay Couplers Released . | . . . Fabnet Peak Effective % . | . . . Robots Rewired . | . . . Allies Hacked . | . . . Hacks Repelled . | . . . Allies | -11 -10 -9 -------- Run | Yrd Mat Mat Total Allies . | . . . Largest Group . | . . . Highest-Rated Group . | . . . Highest-Rated Ally . | . . . Total Orders . | . . . Ally Attacks . | . . . Total Damage . | . . . Kills . | . . . Allies Corrupted . | . . . Allies Melted . | . . . Intel | -11 -10 -9 ------- Run | Yrd Mat Mat Active Infowar (turns) 72 | . . 72 Optics 66 | . . 66 Structural 61 | . . 61 ECM 72 | . . 72 Robot Analysis Total . | . . . Derelict Logs Recovered . | . . . Drone Launches . | . . . Drone Recoveries . | . . . Exploration | -11 -10 -9 ------------- Run | Yrd Mat Mat Turns Passed 986 | 78 815 93 Spaces Moved 546 | 46 426 74 Core 11 | 7 1 3 Treads 481 | 39 425 17 Legs . | . . . Wheels . | . . . Hover . | . . . Flight 54 | . . 54 Fastest Speed 32 | 50 160 32 Average Speed 146 | 143 160 70 Slowest Speed 355 | 160 350 355 Overloaded Moves . | . . . Propulsion Burnouts . | . . . Robots Hopped . | . . . Potential Cave-ins . | . . . Cave-ins Triggered . | . . . Exploration Rate (%) 25 | 4 64 8 Regions Visited 2 Branch Regions . Pre-discovered Areas . | . . . Known Exits Taken 1 | . 1 . Unknown Exits Taken 1 | 1 . . Scrap Searched . | . . . Spaces Dug . | . . . Terrain Destroyed 4 | . 4 . Melee . | . . . Projectile . | . . . AOE 4 | . 4 . Terrain Rammed . | . . . Walls Destroyed . | . . . Machines Disabled . | . . . Actions | -11 -10 -9 --------- Run | Yrd Mat Mat Total 662 | 58 491 113 Wait 2 | . 2 . Move 544 | 45 425 74 Hop . | . . . Pick Up 30 | 7 16 7 Fast Attach 5 | . . 5 Attach 18 | 6 6 6 Detach . | . . . Swap 8 | . 5 3 Drop 19 | . 4 15 Fire 36 | . 33 3 Melee . | . . . Ram . | . . . Kick . | . . . Crush . | . . . Escape Stasis . | . . . Rewire . | . . . Trap . | . . . Miscellaneous . | . . . Route ------- -11/Scrapyard -10/Materials (discovered 5 exits: *Mat x3 / *Min x2) -9/Materials History --------- Turn | Location | Event 5 | -11/Scrapyard | Discovered new exit (range 15) 79 | -11/Scrapyard | Entered Materials 236 | -10/Materials | Discovered new exit (range 12) 310 | -10/Materials | Build established: Mutant 572 | -10/Materials | Discovered new exit (range 16) 810 | -10/Materials | Identified exit to Materials 810 | -10/Materials | Identified exit to Mines 894 | -10/Materials | Entered another Materials area 894 | -9/Materials | Evolved 2 slots: Utility x2 987 | -9/Materials | Self-destructed Last Messages --------------- Dropped Hcp. Matter Pod. Dropped Ion Engine. Dropped Visual Processing Unit. Dropped Med. Storage Unit. Acquired Adv. Visual Processing Unit. Acquired Imp. Light Armor Plating. K-01 Serf collects debris. Dropped Cesium-ion Thruster. K-01 Serf collects debris. Dropped Cesium-ion Thruster. Acquired Lgt. Treads. Dropped Lgt. Treads. Acquired Lgt. Cannon. Dropped Sml. Storage Unit. Acquired Med. Storage Unit. W-16 Scout knocked back. Dropped Structural Scanner. Acquired Hcp. Matter Pod. Dropped Hcp. Matter Pod. Acquired Sml. Storage Unit. Map ----- +----------------------------------------------------+ | ?????????????????????????????????????????????????? | | ?????????????????????????????????????????????????? | | ?????????????????????????????????????????????????? | | ?????????????????????????????????????????????????? | | ?????????????????????????????????????????????????? | | ?????????????????????????????????????????????????? | | ?????????????????????##### ?????????????????????? | | ?????????????????????#######?????????????????????? | | ?????????????????????## ?????????????????????? | | ?????????????????????## ??????????????????????? | | ?????????????????????## ?????????????????????? | | ?????????????????????## k##?????????????????????? | | ???????????############ ##?????????????????????? | | ???????????############ ##?????????????????????? | | ???????????##!!!!!!#### ##?????????????????????? | | ???????????##!!!!!!#### ##?????????????????????? | | ?????? ###### #### ##?????????????????????? | | ?????? ###### ######## u##?????????????????????? | | ?????? + ######## %##?????????????????????? | | ?????? # ######## ##?????????????????????? | | #^ """ # # ##?????????????????????? | | ###+#### """ # """ # ######?????????????????? | | # """ # """ # ######?????????????????? | | # """ # ! ==##?????????????????? | | + #== * =]##?????????????????? | | #######+### """ + @ ! ##?????????????????? | | #### # """ # !!!##?????????????????? | | ? ????## # """ # ##?????????????????? | | ? ?????## # # !!##?????????????????? | | ??????? + # """ ##########?????????????????? | | ???????## # """ ##########?????????????????? | | ???????## # """ ##?????????????????????????? | | ???????## # ##?????????????????????????? | | ???????#################?????????????????????????? | | | | | | | | | | | | | | | | | | | | | | | | | | | | | | | | | +----------------------------------------------------+ Best States ------------- Heat Dissipation 28 Energy Generation 10 Energy Capacity 250 Matter Stores 300 Matter Capacity 500 Sight Range 20 Terrain Scan Density 10 ECM Strength 1 Resistance: KI 20 Resistance: TH 20 Resistance: EX 20 Resistance: EM 20 Resistance: I 20 Resistance: S 20 Resistance: P 20 Evasion (%) 63 Recoil Reduction 2 Offensive Hacking 10 Item Schematics ----------------- None Robot Schematics ------------------ None Fabricated ------------ Nothing Repaired ---------- Nothing Studied --------- None Alien Tech Used ----------------- None Achievements -------------- None Challenges ------------ None Game ------ Seed AssaultGravitonRecalibrator Manual? 0 Play Time 00:10:21 Cumulative 19.4 hours Start 2026.02.14 @ 20:50:51 End 2026.02.14 @ 21:01:03 Sessions 1 Manual Loads 0 Difficulty Adventurer Special Mode None Game No. 14 Rogue 0 Adventurer 14 Explorer 0 Win Type - Total 0 Types 0/0/0/0/0/0/0/0/0/0 Lore% 13 Gallery% 16 Achievement% 14 Wizard Run 0 Options --------- Layout 1 ASCII 0 Keyboard 0 Movement Mouse Keybinds 0 Fullscreen 1 Font 24/Smallcaps Map View 50x40 Zoom Use 0% Tactical HUD 0 Map Filters NONE Filters NONE Steam 1 RUN: 3fafc721-25f7-4b54-a8c9-1d75fdf8c629